Cogmind - Beta 14 @@@ ROGUE MODE // 2024.08.30 @ 01:51:46 Player: celerysam Result: Destroyed by G-47 Trooper with Particle Gun Performance ------------- Evolutions (2) 1000 Regions Visited (3) 600 Robots Destroyed (27) 135 Value Destroyed (705) 705 Prototype IDs (3) 60 Alien Tech Used (0) 0 Bonus (0) 0 TOTAL SCORE: 2500 Bonus ------- None Cogmind --------- Core Integrity 0/550 Matter 272/300 Energy 75/100 System Corruption 0% Temperature Cool (9) Movement Core (50) Location -8/Materials Parts ------- > --- POWER (2) -------- (None) > --- PROPULSION (4) --- (None) > --- UTILITY (3) ------ (None) > --- WEAPON (2) ------- Katana > --- INVENTORY (5) ---- Weight Redist. System Minigun Mining Laser Peak State ------------ > --- POWER ------------ Improved Ion Engine Heavy Ion Engine > --- PROPULSION ------- Light Treads Light Treads Aluminum Leg > --- UTILITY ---------- Structural Scanner ECM Suite Light Armor Plating > --- WEAPON ----------- Beam Rifle Light Cannon > --- INVENTORY -------- Hover Unit Weight Redist. System Heavy EM Pulse Gun Mining Laser Katana [Rating: 14] Favorites ----------- Power Light Ion Engine Engine Light Ion Engine Propulsion Light Treads Treads Light Treads Leg Aluminum Leg Wheel Wheel Hover Unit Hover Unit Flight Unit Flight Unit Utility Structural Scanner Device Structural Scanner Storage Small Storage Unit Protection Light Armor Plating Weapon Light Cannon Energy Gun Beam Rifle Ballistic Cannon Light Cannon Slashing Weapon Katana Build | -11 -10 -9 -8 ------- Run | Yrd Mat Mat Mat Slots Evolved 4 | . . 2 2 Power 1 | . . . 1 Propulsion 2 | . . 2 . Utility 1 | . . . 1 Weapon . | . . . . Parts Attached 46 | 8 5 24 9 Power 10 | 2 1 4 3 Engine 10 | 2 1 4 3 Core . | . . . . Reactor . | . . . . Propulsion 18 | 2 2 13 1 Treads 6 | . . 6 . Leg 4 | . 2 2 . Wheel 3 | 2 . 1 . Hover 2 | . . 1 1 Flight 3 | . . 3 . Utility 7 | 1 1 3 2 Device 5 | . 1 2 2 Storage 1 | 1 . . . Processor . | . . . . Hackware . | . . . . Protection 1 | . . 1 . Artifact . | . . . . Weapon 11 | 3 1 4 3 Energy Gun 6 | 3 1 1 1 Energy Cannon . | . . . . Ballistic Gun . | . . . . Ballistic Cannon 4 | . . 3 1 Launcher . | . . . . Special Weapon . | . . . . Impact Weapon . | . . . . Slashing Weapon 1 | . . . 1 Piercing Weapon . | . . . . Special Melee Weapon . | . . . . Unidentified Prototypes 1 | . . . 1 Parts Lost 24 | . 2 10 12 Power 3 | . . 1 2 Propulsion 10 | . . 6 4 Utility 5 | . 1 1 3 Weapon 6 | . 1 2 3 Highest Loss Streak 12 | . 2 9 12 To Critical Strikes . | . . . . Average Slot Usage (%) 84 | . 84 89 66 Engine 11 | . 14 10 13 Treads 18 | . . 25 12 Leg 9 | . 11 9 5 Wheel 4 | . 16 2 . Flight 1 | . . 1 . Device 12 | . 6 13 13 Storage 1 | . 7 . . Protection 4 | . . 5 5 Energy Gun 13 | . 28 10 7 Ballistic Cannon 7 | . . 9 6 Peak Build Rating 14 | 6 6 11 14 Average Rating 8 | 3 5 9 10 On Entrance 5 | . 6 6 10 Naked Turns . | . . . . Heaviest Build 27 | 14 14 17 27 Greatest Support 60 | 26 26 60 40 Greatest Overweight (x) 2 | 1 . 2 1 Average Overweight (x) . | . . . . Largest Inventory Capacity 8 | 8 8 5 5 Average Capacity 5 | 7 6 5 5 Most Carried 8 | 8 8 5 5 Average Carried 4 | 4 6 4 4 Final Capacity 8 | 8 5 5 5 Final Carried 6 | 6 5 5 3 Class Distribution -------------------- 48% | Mutant 46% | Scavenger-Mutant 5% | Infiltrator-Mutant Dominant Class ---------------- Mutant | -10/Materials Scavenger-Mutant | -9/Materials Scavenger-Mutant | -8/Materials Resources | -11 -10 -9 -8 ----------- Run | Yrd Mat Mat Mat Matter Collected 847 | 238 170 415 24 Remotely . | . . . . Salvage Created 785 | . 188 591 6 Parts 46 | . 6 39 1 Haulers Intercepted . | . . . . Recyclers Shooed . | . . . . Parts Field Recycled . | . . . . Retrieved Matter . | . . . . Parts Self-Destructed . | . . . . Prevented . | . . . . Kills | -11 -10 -9 -8 ------- Run | Yrd Mat Mat Mat Combat Hostiles Destroyed 23 | . 6 17 . Guns 15 | . 6 9 . Cannons 8 | . . 8 . Classes Destroyed 7 | . 3 3 1 Worker 1 | . . 1 . Operator 1 | . . . 1 Watcher 2 | . 1 1 . Swarmer 9 | . 3 6 . Grunt 9 | . 3 6 . Duelist 1 | . . 1 . Sentry 4 | . . 4 . Best Kill Streak 5 | . 5 5 1 Combat Bots Only 5 | . 5 4 . Max Kills in Single Turn 1 | . 1 1 1 Gunslinging . | . . . . Exploded . | . . . . Melee . | . . . . Uniques/NPCs Destroyed . | . . . . Combat | -11 -10 -9 -8 -------- Run | Yrd Mat Mat Mat Hostile Shots Fired 322 | . 35 171 116 Missed 114 | . 9 53 52 Damage Taken 3001 | . 365 1336 1300 Core 984 | . 136 293 555 Absorbed by Shields . | . . . . Core Remaining (%) 57 | 100 45 26 . Volleys Fired 89 | . 23 55 11 Largest 2 | . 2 2 2 Hottest 101 | . 100 91 101 Shots Fired 166 | . 45 100 21 Gun 105 | . 45 45 15 Cannon 61 | . . 55 6 Launcher . | . . . . Special . | . . . . Kinetic 61 | . . 55 6 Thermal 79 | . 43 25 11 Explosive . | . . . . Electromagnetic 26 | . 2 20 4 Robot Hit Streak 10 | . 4 9 10 Robot Miss Streak 10 | . 6 10 1 Penetration Max . | . . . . Secondary Targets 1 | . 1 . . Max Gunslinging Chain 1 | . 1 . . Shots Hit Robots 90 | . 21 56 13 Core Hits 42 | . 11 26 5 Critical Kills . | . . . . Critical Parts Destroyed . | . . . . Critical Strikes 7 | . 3 3 1 Burn 5 | . 3 1 1 Blast 2 | . . 2 . Melee Attacks 2 | . . . 2 Impact . | . . . . Slashing 2 | . . . 2 Piercing . | . . . . Sneak Attacks . | . . . . Combat Hostiles . | . . . . Follow-up Attacks . | . . . . Damage Inflicted 1520 | . 284 979 257 Guns 887 | . 284 453 150 Cannons 631 | . . 526 105 Explosions . | . . . . Melee . | . . . . Ramming 2 | . . . 2 Kinetic 631 | . . 526 105 Thermal 640 | . 264 276 100 Explosive . | . . . . Electromagnetic 247 | . 20 177 50 Impact . | . . . . Slashing . | . . . . Piercing . | . . . . Highest Corruption . | . . . . Average Corruption . | . . . . Corruption Purged . | . . . . Corruption Blocked . | . . . . Overload Shots . | . . . . Overflow Damage 7 | . . 7 . Projectiles 7 | . . 7 . Explosions . | . . . . Melee . | . . . . Knockbacks 8 | . . 8 . Impact . | . . . . Kinetic 8 | . . 8 . Secondary . | . . . . Self-Inflicted Damage . | . . . . Shots . | . . . . Rammed 3 | . . . 3 Targets Rammed 3 | . . . 3 Kicked . | . . . . Crushed . | . . . . Highest Temperature 599 | . 599 186 185 Average Temperature 135 | . 261 68 65 Received Heat Transfer 558 | . 87 399 72 Effects 19 | . 19 . . Shutdowns 2 | . 2 . . Energy Bleed 1 | . 1 . . Interference 2 | . 2 . . Matter Decay 2 | . 2 . . Damage (major) 12 | . 12 . . Siege Activations . | . . . . Robots Corrupted . | . . . . Combat Hostiles . | . . . . Parts Fried . | . . . . Impact Corruptions . | . . . . Robots Melted . | . . . . Combat Hostiles . | . . . . Parts Melted 2 | . 2 . . Heat Transferred 2109 | . 999 777 333 Parts Sabotaged . | . . . . Parts Stolen . | . . . . Parts Stripped . | . . . . Power Chain Reactions . | . . . . Alert | -11 -10 -9 -8 ------- Run | Yrd Mat Mat Mat Peak Influence 380 | . 187 380 106 Initial 96 | . . 78 96 Average 183 | . 119 246 79 Maximum Alert Level 1 | . . 1 . Low Security (%) 59 | 100 100 32 100 Level 1 40 | . . 67 . Level 2 . | . . . . Level 3 . | . . . . Level 4 . | . . . . Level 5 . | . . . . High Security . | . . . . Max Security . | . . . . Squads Dispatched 2 | . . . 2 Investigation . | . . . . Extermination . | . . . . Reinforcement 2 | . . . 2 Assault . | . . . . Garrison . | . . . . Intercept . | . . . . Searches Triggered . | . . . . Construction Impeded . | . . . . Haulers Reinforced . | . . . . Active Scanning Responses . | . . . . Cargo Convoy Interrupts . | . . . . Stealth | -11 -10 -9 -8 --------- Run | Yrd Mat Mat Mat Distress Signals 3 | . 2 1 . Communications Jammed . | . . . . Distress Signals . | . . . . Times Spotted 46 | . 11 26 9 Peak Tracking Total 7 | . 7 7 6 Tactical Retreats 6 | . . 4 2 Traps | -11 -10 -9 -8 ------- Run | Yrd Mat Mat Mat Traps Triggered 5 | . 3 2 . Indirectly . | . . . . Trap Hack Attempts . | . . . . Triggered . | . . . . Disarmed . | . . . . Reprogrammed . | . . . . Reused . | . . . . Traps Extracted . | . . . . Installed . | . . . . Triggered . | . . . . Machines | -11 -10 -9 -8 ---------- Run | Yrd Mat Mat Mat Machines Disabled 2 | . . 2 . Max in Single Turn 1 | . . 1 . Machines Repaired . | . . . . Machines Dismantled . | . . . . Machines Sabotaged . | . . . . Overloaded Fab Kills . | . . . . Hacking | -11 -10 -9 -8 --------- Run | Yrd Mat Mat Mat Machines Accessed 3 | . 1 1 1 Terminals 1 | . . . 1 Fabricators . | . . . . Repair Stations . | . . . . Recycling Units 2 | . 1 1 . Scanalyzers . | . . . . Garrison Access . | . . . . Total Hacks 4 | . 1 1 2 Successful 4 | . 1 1 2 Failed . | . . . . Catastrophic . | . . . . Database Lockouts . | . . . . Manual . | . . . . Terminals 2 | . . . 2 Fabricators . | . . . . Repair Stations . | . . . . Recycling Units 2 | . 1 1 . Scanalyzers . | . . . . Garrison Access . | . . . . Terminal Hacks 2 | . . . 2 Prototype ID Bank 1 | . . . 1 Alert Level 1 | . . . 1 Fabricator Hacks . | . . . . Repair Station Hacks . | . . . . Recycling Unit Hacks 2 | . 1 1 . Report Inventory 2 | . 1 1 . Scanalyzer . | . . . . Garrison Access Hacks . | . . . . Unauthorized Hacks . | . . . . Terminals . | . . . . Fabricators . | . . . . Repair Stations . | . . . . Recycling Units . | . . . . Scanalyzers . | . . . . Garrison Access . | . . . . Data Cores Recovered 1 | . . . 1 Used . | . . . . Hacking Detections 2 | . 1 . 1 Full Trace Events . | . . . . Feedback Events . | . . . . Feedback Blocked . | . . . . Robot Schematics Acquired . | . . . . Robots Built . | . . . . Authchips . | . . . . Time . | . . . . Total Robot Build Rating . | . . . . Part Schematics Acquired . | . . . . Parts Built . | . . . . Authchips . | . . . . Time . | . . . . Total Part Build Rating . | . . . . Parts Repaired . | . . . . Time . | . . . . Parts Recycled . | . . . . Recycled Matter . | . . . . Retrieved Matter . | . . . . Retrieved Components . | . . . . Parts Scanalyzed . | . . . . Part Schematics Acquired . | . . . . Parts Damaged . | . . . . Bothacking | -11 -10 -9 -8 ------------ Run | Yrd Mat Mat Mat Used RIF Installer . | . . . . Robots Hacked . | . . . . Non-combat . | . . . . Combat . | . . . . Robot Hacks Applied . | . . . . Relay Couplers Released . | . . . . Fabnet Peak Effective % . | . . . . Robots Rewired . | . . . . Allies Hacked . | . . . . Hacks Repelled . | . . . . Allies | -11 -10 -9 -8 -------- Run | Yrd Mat Mat Mat Total Allies . | . . . . Largest Group . | . . . . Highest-Rated Group . | . . . . Highest-Rated Ally . | . . . . Total Orders . | . . . . Ally Attacks . | . . . . Total Damage . | . . . . Kills . | . . . . Allies Corrupted . | . . . . Allies Melted . | . . . . Intel | -11 -10 -9 -8 ------- Run | Yrd Mat Mat Mat Robot Analysis Total . | . . . . Derelict Logs Recovered . | . . . . Drone Launches . | . . . . Drone Recoveries . | . . . . Exploration | -11 -10 -9 -8 ------------- Run | Yrd Mat Mat Mat Turns Passed 1472 | 68 290 879 235 Spaces Moved 865 | 51 194 485 135 Core 45 | 4 . 2 39 Treads 458 | . . 372 86 Legs 105 | . 92 13 . Wheels 201 | 47 102 52 . Hover 12 | . . 2 10 Flight 44 | . . 44 . Fastest Speed 50 | 50 90 50 50 Average Speed 128 | 94 104 140 131 Slowest Speed 240 | 100 120 220 240 Overloaded Moves . | . . . . Propulsion Burnouts . | . . . . Robots Hopped . | . . . . Cave-ins Triggered . | . . . . Exploration Rate (%) 19 | 3 29 35 12 Regions Visited 3 Branch Regions . Pre-discovered Areas . | . . . . Known Exits Taken . | . . . . Unknown Exits Taken 3 | 1 1 1 . Scrap Searched . | . . . . Spaces Dug 1 | . . . 1 Terrain Destroyed 1 | . . . 1 Melee 1 | . . . 1 Projectile . | . . . . AOE . | . . . . Terrain Rammed . | . . . . Walls Destroyed . | . . . . Machines Disabled . | . . . . Actions | -11 -10 -9 -8 --------- Run | Yrd Mat Mat Mat Total 1058 | 68 238 584 168 Wait 10 | . 9 1 . Move 862 | 50 193 484 135 Hop . | . . . . Pick Up 27 | 10 5 9 3 Fast Attach 17 | 2 1 10 4 Attach 19 | 4 3 8 4 Detach 2 | . . 1 1 Swap 10 | 2 1 6 1 Drop 17 | . 3 10 4 Fire 89 | . 23 55 11 Melee 2 | . . . 2 Ram 3 | . . . 3 Kick . | . . . . Crush . | . . . . Escape Stasis . | . . . . Rewire . | . . . . Trap . | . . . . Miscellaneous . | . . . . Route ------- -11/Scrapyard -10/Materials -9/Materials (discovered 2 exits: *Mat / [*Min]) -8/Materials History --------- Turn | Location | Event 11 | -11/Scrapyard | Discovered new exit (range 16) 69 | -11/Scrapyard | Entered Materials 272 | -10/Materials | Discovered new exit (range 16) 295 | -10/Materials | Core integrity fell below 50% 318 | -10/Materials | Build established: Mutant 359 | -10/Materials | Entered another Materials area 359 | -9/Materials | Evolved 2 slots: Propulsion x2 605 | -9/Materials | Discovered new exit (range 10) 613 | -9/Materials | Discovered new exit (range 14) 684 | -9/Materials | Lost 9 parts (1p5n1u2w) 685 | -9/Materials | Core integrity fell below 50% 1040 | -9/Materials | Build established: Scavenger-Mutant 1238 | -9/Materials | Entered another Materials area 1238 | -8/Materials | Evolved 2 slots: Power x1, Utility x1 1442 | -8/Materials | Core integrity fell below 50% 1469 | -8/Materials | Core integrity fell below 20% 1473 | -8/Materials | Destroyed by G-47 Trooper with Particle Gun Last Messages --------------- 01413_ Imp. Ion Engine destroyed. 01414_ Acquired 4 matter. 01416_ U-05 Engineer destroyed. 01416_ Lgt. Treads destroyed. 01416_ Hvy. EM Pulse Gun destroyed. 01418_ Knocked back. 01419_ Acquired 7 matter. 01422_ Hvy. Ion Engine destroyed. 01423_ Lgt. Cannon destroyed. 01424_ Beam Rifle destroyed. 01424_ Knocked back. 01433_ Hover Unit destroyed. 01443_ Acquired Minigun. 01444_ X-57 Shotgunner destroyed. 01447_ U-05 Engineer builds a Wall. 01459_ Structural Scanner destroyed. 01461_ ECM Suite destroyed. 01470_ Slammed into G-47 Trooper. 01472_ Acquired 5 matter. 01472_ Slammed into G-47 Trooper. Map ----- +----------------------------------------------------+ | ???????????????????????????????????????? | | ???????????????????????????????????????? | | ???????????????????????????????????????? | | ???????????????????????????????????????? | | ???????????????????????????????????????? | | ???????????????????????????????????????? | | ???????????????????????????????????????? | | ???????????????????????????????????????? | | ???????????????????????????????????????? | | ???????????????????????????????????????? | | ????????????????????????? ?????????????? | | ????????????????????????? ?????????????? | | ????????????????????????? ?????????????? | | ????????????????????????? ?????????????? | | ????????????????????????? ?????????????? | | ????????????????????????? ?????????????? | | ????????????????????????? ?????????????? | | ????????????????????????# #????????????? | | ????????????????????????#w#????????????? | | ????????????????????????# #????????????? | | ????????????????????????# #????????????? | | ????????????????????????# #????????????? | | ????????????????????????# #????????????? | | ????????????????????????# #????????????? | | ?????########???????????#g#????######??? | | ?????########???????????#@##??? ??? | | ?????## ##???????? ### ### ???? | | ?????## T ##??? ### ### ???? | | ?????## ##???###+### gg # """ ""???? | | ?????## #######% # """ ""???? | | ?????##! ####### % H + """ ""???? | | ????### %! + %*% # ?? | | ????### #!%! #### # #? | | ????### # | % %##### ############? | | ????### # % ##?## %# # | | ?????#######+##### ##?## + # | | ?????#### ## ##?##x # # | | ???????## ## ##?## # # | | ???????## *! ## ##?## # # | | ???????## *!! ## ##?## # # | | ???????## *!! [## ##### # ? # | | ???????###########+##### %############? | | ???????###### % ## ###?????????? | | ???????????## # ##?????????? | | ???????????## # ##?????????? | | ???????????## """ + T ##?????????? | | ???????????## """ # ##?????????? | | ???????????## """ # ##?????????? | | ???????????## ! """ ## ###?????????? | | ???????????##!! ## ###?????????? | +----------------------------------------------------+ Best States ------------- Heat Dissipation 50 Energy Generation 21 Energy Capacity 445 Matter Stores 300 Matter Capacity 300 Sight Range 16 Terrain Scan Density 10 ECM Strength 1 Armor Coverage 150 Evasion (%) 59 Recoil Reduction 3 Item Schematics ----------------- None Robot Schematics ------------------ None Fabricated ------------ Nothing Alien Tech Used ----------------- None Achievements -------------- None Challenges ------------ None Game ------ Seed VortexDeepRigger Manual? 0 Play Time 00:18:59 Cumulative 135.0 hours Start 2024.08.30 @ 01:15:15 End 2024.08.30 @ 01:51:46 Sessions 1 Manual Loads 0 Difficulty Rogue Special Mode None Game No. 191 Rogue 191 Adventurer 0 Explorer 0 Win Type - Total 0 Types 0/0/0/0/0/0/0/0/0 Lore% 31 Gallery% 58 Achievement% 39 Wizard Run 0 Options --------- Layout 0 ASCII 0 Keyboard 0 Movement Mouse Keybinds 0 Fullscreen 1 Font 24/Smallcaps Map View 76x50 Zoom Use 0% Tactical HUD 1 Map Filters NONE Filters NONE Steam 1 RUN: f3018609-dffd-49b8-984b-20c7e5721960